bitfinex/quotes_BTCUSD_20260110
["timestamp","ask_amount","ask_price","bid_price","bid_amount"]
[1768080089372,5.446e-05,90532.0,90527.0,0.01104642]
[1768080089749,5.446e-05,90532.0,90528.0,0.0110463]
[1768080091577,0.02217446,90532.0,90527.0,0.01104642]
[1768080093471,0.02217446,90532.0,90526.0,0.02104655]
[1768080093697,0.02217446,90532.0,90527.0,0.01104642]
[1768080093867,0.02217446,90532.0,90526.0,0.02104655]
[1768080094458,0.02217446,90532.0,90526.0,0.02097833]
[1768080094783,0.02217446,90532.0,90527.0,0.01104642]
[1768080096615,0.02217446,90532.0,90528.0,0.0110463]
[1768080099297,0.02217446,90532.0,90529.0,0.01104618]
[1768080099523,0.02217446,90532.0,90529.0,0.01100126]
[1768080100641,0.02217446,90532.0,90529.0,0.01093305]
[1768080101253,0.02217446,90532.0,90529.0,0.01104618]
[1768080101663,0.02217446,90532.0,90528.0,0.0110463]
[1768080101872,0.02217446,90532.0,90529.0,0.01104618]
[1768080102297,0.02217446,90532.0,90528.0,0.0110463]
[1768080104189,0.03,90531.0,90528.0,0.0110463]
[1768080107508,0.03,90531.0,90528.0,0.01097808]
[1768080113758,0.03,90531.0,90528.0,0.01090986]
[1768080115838,0.03,90530.0,90529.0,0.01104618]
[1768080116992,0.03005446,90532.0,90529.0,0.01100126]
[1768080117506,0.07725896,90532.0,90529.0,0.01100126]
[1768080117707,0.03,90530.0,90529.0,0.01100126]
[1768080117971,0.0772045,90528.0,90527.0,0.03818952]
[1768080118433,0.0772045,90528.0,90527.0,0.04923594]
[1768080120295,0.0772045,90528.0,90527.0,0.04916773]
[1768080121459,5.446e-05,90532.0,90529.0,0.01104618]
[1768080121678,0.03,90530.0,90529.0,0.01104618]
[1768080121883,5.446e-05,90532.0,90531.0,0.10386361]
[1768080122292,5.446e-05,90532.0,90531.0,0.04863391]
[1768080122672,5.446e-05,90532.0,90531.0,0.10386361]
[1768080126692,5.446e-05,90532.0,90531.0,0.10379539]
[1768080127588,0.03005446,90532.0,90531.0,0.10379539]
[1768080128803,5.446e-05,90532.0,90531.0,0.10379539]
[1768080129993,0.0001517,90534.0,90533.0,0.10381166]
[1768080130193,9.724e-05,90534.0,90533.0,0.04858318]
[1768080130399,9.724e-05,90534.0,90532.0,0.05522893]
[1768080130630,9.724e-05,90534.0,90533.0,0.10381166]
[1768080130845,0.03039,90535.0,90533.0,0.05522848]
[1768080131053,0.03039,90535.0,90534.0,0.04858318]
[1768080131689,0.00039,90535.0,90534.0,0.04858318]
[1768080132000,0.00039,90535.0,90532.0,0.11485748]
[1768080132206,0.03,90533.0,90532.0,0.01104581]
[1768080132577,0.02212,90538.0,90533.0,0.01104569]
[1768080132925,0.03039,90542.0,90534.0,0.01104557]
[1768080133096,0.02212,90538.0,90534.0,0.01104557]
[1768080133295,0.03,90537.0,90533.0,0.01104569]
[1768080134512,0.03,90537.0,90532.0,0.01104581]
[1768080135020,0.03,90537.0,90534.0,0.01104557]
[1768080135597,0.03,90536.0,90533.0,0.01104569]
[1768080136598,0.03,90535.0,90533.0,0.01104569]
[1768080137016,0.03,90535.0,90532.0,0.01104581]
[1768080137724,0.03,90534.0,90532.0,0.01104581]
[1768080138043,0.02212,90538.0,90533.0,0.01104569]
[1768080138583,0.02212,90538.0,90534.0,0.01104557]
[1768080138844,0.03,90537.0,90534.0,0.01104557]
[1768080139277,0.03,90537.0,90532.0,0.01104581]
[1768080139479,0.03,90537.0,90534.0,0.01104557]
[1768080139828,0.03,90537.0,90532.0,0.06627464]
[1768080139829,0.03,90537.0,90532.0,0.01104581]
[1768080140077,0.03,90537.0,90533.0,0.01104569]
[1768080140314,0.03,90537.0,90532.0,0.01104581]
[1768080140601,0.03,90537.0,90531.0,0.01104594]
[1768080141156,0.03,90536.0,90531.0,0.01104594]
[1768080141575,0.03,90536.0,90533.0,0.01104569]
[1768080141777,0.03,90536.0,90531.0,0.01104594]
[1768080143022,0.03,90536.0,90529.0,0.01104618]
[1768080143221,0.03,90536.0,90530.0,0.01104606]
[1768080144699,0.02212,90537.0,90530.0,0.01104606]
[1768080144836,0.02212,90537.0,90531.0,0.01104594]
[1768080145287,0.02212,90537.0,90529.0,0.01104618]
[1768080145641,0.02212,90537.0,90530.0,0.01104606]
[1768080146853,0.02212,90537.0,90531.0,0.01104594]
[1768080147322,0.02212,90537.0,90532.0,0.01104581]
[1768080147515,0.02212,90537.0,90533.0,0.01104569]
[1768080148583,0.02212,90537.0,90534.0,0.01104557]
[1768080148789,0.02212,90537.0,90533.0,0.01104569]
[1768080149394,0.02212,90537.0,90534.0,0.01104557]
[1768080151052,0.02212,90537.0,90534.0,0.00993178]
[1768080151258,0.0220299,90537.0,90534.0,0.00993178]
[1768080151867,0.0220299,90537.0,90534.0,0.02097735]
[1768080152129,0.0220299,90537.0,90534.0,0.00993178]
[1768080154706,0.0220299,90537.0,90534.0,0.0096215]
[1768080157573,0.0220299,90537.0,90534.0,0.00957657]
[1768080169071,0.0220299,90537.0,90534.0,0.00926629]
[1768080173802,0.0220299,90537.0,90534.0,0.00922136]
[1768080174008,0.0219398,90537.0,90534.0,0.00922136]
[1768080180908,0.03,90541.0,90534.0,0.00922136]
[1768080181229,0.03,90537.0,90534.0,0.06811506]
[1768080181865,0.01104581,90543.0,90537.0,0.0110452]
[1768080182068,0.03,90543.0,90538.0,0.01104508]
[1768080182521,0.03,90543.0,90537.0,0.0110452]
[1768080183193,0.03,90543.0,90535.0,0.10307531]
[1768080183194,0.03,90543.0,90535.0,0.10307509]
[1768080183416,0.0001517,90544.0,90534.0,0.02026693]
[1768080183417,0.03,90542.0,90540.0,0.05889297]
[1768080183648,0.05212,90542.0,90541.0,0.0473261]
[1768080183861,0.05212,90542.0,90541.0,0.1025497]
[1768080184073,0.05212,90542.0,90541.0,0.0473261]
[1768080184738,0.02200954,90542.0,90541.0,0.0473261]
[1768080184964,0.05200954,90542.0,90541.0,0.0473261]
[1768080185801,0.03,90542.0,90541.0,0.0473261]
[1768080188595,0.03,90543.0,90541.0,0.05837082]
[1768080189659,0.03,90543.0,90541.0,0.05832589]
[1768080190006,0.03,90542.0,90541.0,0.05832589]
[1768080192281,0.0222717,90544.0,90541.0,0.05832589]
[1768080192282,0.03,90543.0,90541.0,0.05832589]
[1768080195465,0.03,90543.0,90542.0,0.05522299]
[1768080195633,0.03,90543.0,90542.0,0.10254909]
[1768080195801,0.03,90543.0,90542.0,0.0473261]
[1768080196468,0.03,90543.0,90542.0,0.10254909]
[1768080197432,0.03,90543.0,90542.0,0.05522299]
[1768080198921,0.03,90543.0,90541.0,0.01104472]
[1768080199827,0.03,90542.0,90541.0,0.01104472]
[1768080200299,0.03,90542.0,90541.0,0.0662679]
[1768080200987,0.0301517,90544.0,90541.0,0.0662679]
[1768080201395,0.0301517,90544.0,90541.0,0.06599986]
[1768080201755,0.0301517,90544.0,90541.0,0.11332596]
[1768080202361,0.03,90543.0,90541.0,0.06732414]
[1768080202760,0.03,90543.0,90541.0,0.12254762]
[1768080202966,0.03,90543.0,90541.0,0.05654746]
[1768080203403,0.0301517,90544.0,90541.0,0.06759218]
[1768080205173,0.0301517,90544.0,90541.0,0.12281545]
[1768080205544,0.03,90543.0,90541.0,0.12281545]
[1768080206279,0.03,90543.0,90541.0,0.12277052]
[1768080206787,0.0301517,90544.0,90541.0,0.12277052]
[1768080207904,0.03,90543.0,90542.0,0.05522299]
[1768080208110,0.0001517,90553.0,90544.0,0.0473261]
[1768080208316,0.02212,90552.0,90545.0,0.0473261]
[1768080208524,0.02212,90552.0,90545.0,0.0463271]
[1768080208931,0.02212,90552.0,90546.0,0.01104411]
[1768080209158,0.03,90551.0,90545.0,0.0463271]
[1768080209757,0.03,90551.0,90545.0,0.05737133]
[1768080211185,0.03,90551.0,90545.0,0.0463271]
[1768080211598,0.03,90551.0,90545.0,0.05737133]
[1768080211800,0.03,90551.0,90545.0,0.0463271]
[1768080214208,0.03,90551.0,90547.0,0.04549852]
[1768080215197,0.03,90551.0,90547.0,0.0565425]
[1768080215402,0.03,90551.0,90548.0,0.01104386]
[1768080215603,0.03,90551.0,90549.0,0.04549852]
[1768080217749,0.03,90551.0,90549.0,0.0454536]
[1768080220059,0.03,90551.0,90549.0,0.05467496]
[1768080222946,0.03,90551.0,90549.0,0.00922136]
[1768080229820,0.03,90551.0,90549.0,0.05471988]
[1768080236749,0.02212,90552.0,90551.0,0.04669053]
[1768080236927,0.00021789,90553.0,90552.0,0.10090842]
[1768080237130,0.00010745,90553.0,90552.0,0.10090842]
[1768080238349,4.5e-07,90553.0,90552.0,0.05521689]
[1768080238551,0.03000045,90553.0,90552.0,0.10090842]
[1768080239892,4.5e-07,90553.0,90552.0,0.10090842]
[1768080240913,0.0001517,90562.0,90553.0,0.05673478]
[1768080241113,0.03453691,90557.0,90555.0,0.01104301]
[1768080241325,0.06453691,90556.0,90555.0,0.01104301]
[1768080241936,0.06453691,90556.0,90555.0,0.06625807]
[1768080242157,0.03364491,90556.0,90555.0,0.06625807]
[1768080242718,0.06364491,90556.0,90555.0,0.06625807]
[1768080245204,0.06364491,90556.0,90555.0,0.01104301]
[1768080245408,0.06364491,90556.0,90553.0,0.01104325]
[1768080245751,0.06364491,90556.0,90553.0,0.06625949]
[1768080246361,0.06364491,90556.0,90553.0,0.01104325]
[1768080246571,0.06364491,90556.0,90553.0,0.06625951]
[1768080246771,0.03,90555.0,90554.0,0.05668729]
[1768080247438,0.03,90555.0,90554.0,0.04564416]
[1768080247776,0.03,90555.0,90554.0,0.05668729]
[1768080251184,0.03,90555.0,90554.0,0.04564416]
[1768080251626,0.03,90555.0,90554.0,0.06590865]
[1768080253789,0.03,90557.0,90554.0,0.06590865]
[1768080254898,0.03,90556.0,90554.0,0.05486552]
[1768080255336,0.03,90556.0,90555.0,0.04564416]
[1768080256101,0.03,90556.0,90555.0,0.05668717]
[1768080257506,0.03,90556.0,90555.0,0.04564416]
[1768080258108,0.03,90557.0,90555.0,0.04564416]
[1768080258471,0.03,90557.0,90556.0,0.04564416]
[1768080259160,0.03,90559.0,90556.0,0.05668705]
[1768080261632,0.03,90558.0,90557.0,0.05668692]
[1768080263706,0.03,90559.0,90557.0,0.05668692]
[1768080264101,0.03,90559.0,90557.0,0.04564416]
[1768080264332,0.05212,90559.0,90557.0,0.04564416]
[1768080264507,0.03,90559.0,90557.0,0.04564416]
[1768080264713,0.03,90558.0,90557.0,0.05668692]
[1768080267897,0.03,90558.0,90557.0,0.06590828]
[1768080269306,0.03,90558.0,90557.0,0.02026412]
[1768080269504,0.03,90558.0,90557.0,0.01866825]
[1768080270520,0.03,90558.0,90557.0,0.01836065]
[1768080270756,0.03,90558.0,90557.0,0.01805051]
[1768080270957,0.03,90558.0,90557.0,0.00891124]
[1768080271161,0.03,90558.0,90557.0,0.00860112]
[1768080273453,0.03,90558.0,90557.0,0.06381496]
[1768080275825,0.0001517,90562.0,90559.0,0.01104252]
[1768080276034,0.06364491,90560.0,90559.0,0.06625471]
[1768080276656,0.06364491,90560.0,90559.0,0.06609707]
[1768080276872,0.06364491,90560.0,90559.0,0.06594463]
[1768080277288,0.06364491,90560.0,90559.0,0.06563453]
[1768080277692,0.06364491,90560.0,90559.0,0.01042234]
[1768080278094,0.06364491,90560.0,90557.0,0.07485717]
[1768080278095,0.03364491,90559.0,90557.0,0.07485717]
[1768080278337,0.03,90558.0,90557.0,0.07485717]
[1768080279310,0.03,90559.0,90558.0,0.05521323]
[1768080280127,0.0001517,90562.0,90561.0,0.0552114]
[1768080280352,0.08576491,90561.0,90560.0,0.05521195]
[1768080280680,0.05212,90561.0,90560.0,0.05521195]
[1768080281544,0.05212,90561.0,90559.0,0.06625499]
[1768080281745,0.03,90560.0,90559.0,0.06625499]
[1768080282755,0.0001517,90562.0,90560.0,0.05521185]
[1768080283361,0.0001517,90562.0,90560.0,0.05490177]
[1768080284054,0.0001517,90562.0,90559.0,0.0662551]
[1768080284228,0.0001517,90562.0,90560.0,0.05521196]
[1768080284463,0.0001517,90562.0,90561.0,0.04706651]
[1768080284780,0.0001517,90562.0,90560.0,0.05521201]
[1768080285484,0.0001517,90562.0,90561.0,0.0552114]
[1768080286635,0.02212,90564.0,90563.0,0.01104203]
[1768080288463,0.05576491,90564.0,90563.0,0.01104203]
[1768080289533,0.02212,90564.0,90563.0,0.01104203]
[1768080290175,0.02212,90564.0,90563.0,0.01099713]
[1768080290614,0.0001517,90571.0,90564.0,0.01104191]
[1768080290819,0.0001517,90571.0,90566.0,0.01104167]
[1768080291019,0.03,90569.0,90565.0,0.01104179]
[1768080291843,0.03,90569.0,90566.0,0.01104167]
[1768080292296,0.03364491,90566.0,90565.0,0.01104179]
[1768080292452,0.06364491,90566.0,90565.0,0.01104179]
[1768080292650,0.08576491,90566.0,90565.0,0.01104179]
[1768080292856,0.08567477,90566.0,90565.0,0.01104179]
[1768080294113,0.06355477,90564.0,90563.0,0.01099713]
[1768080294781,0.0001517,90571.0,90568.0,0.01104142]
[1768080294980,0.0001517,90571.0,90568.0,0.0662483]
[1768080295162,0.03023322,90573.0,90570.0,0.01104118]
[1768080295380,0.03023322,90573.0,90569.0,0.0110413]
[1768080295794,0.03023322,90573.0,90570.0,0.01104118]
[1768080296029,0.03023322,90573.0,90569.0,0.0110413]
[1768080296680,0.03023322,90573.0,90570.0,0.057403]
[1768080297510,0.03023322,90573.0,90570.0,0.04636182]
[1768080298317,0.03,90571.0,90570.0,0.04636182]
[1768080298523,0.05212,90571.0,90570.0,0.04636182]
[1768080299647,0.03,90571.0,90570.0,0.04636182]
[1768080299802,0.05212,90571.0,90570.0,0.04636182]
[1768080300001,0.03,90571.0,90570.0,0.04636182]
[1768080300230,0.05212,90571.0,90570.0,0.04636182]
[1768080300633,0.05212,90571.0,90570.0,0.05496294]
[1768080300937,0.05212,90571.0,90570.0,0.00860112]
[1768080301151,0.03,90571.0,90570.0,0.00860112]
[1768080301648,0.05212,90571.0,90570.0,0.00860112]
[1768080302008,0.05212,90571.0,90570.0,0.05596194]
[1768080302613,0.03,90571.0,90570.0,0.05596194]
[1768080303156,0.05212,90571.0,90570.0,0.05596194]
[1768080303806,0.05212,90571.0,90570.0,0.05591704]
[1768080305141,0.03,90571.0,90570.0,0.05591704]
[1768080305397,0.05212,90571.0,90570.0,0.05591704]
[1768080305531,0.03,90571.0,90570.0,0.05591704]
[1768080305724,0.05212,90571.0,90570.0,0.05591704]
[1768080306613,0.02172,90571.0,90570.0,0.05591704]
[1768080307554,0.05172,90571.0,90570.0,0.05591704]
[1768080308800,0.05212,90571.0,90570.0,0.05591704]
[1768080311838,0.02212,90571.0,90570.0,0.05591704]
[1768080312039,0.05212,90571.0,90570.0,0.05591704]
[1768080314487,0.00023322,90573.0,90570.0,0.05591704]
[1768080314645,0.05212,90571.0,90570.0,0.05591704]
[1768080314848,0.03,90571.0,90570.0,0.05591704]
[1768080315066,0.05212,90571.0,90570.0,0.05591704]
[1768080315473,0.03,90571.0,90570.0,0.05591704]
[1768080315683,0.05212,90571.0,90570.0,0.05591704]
[1768080317037,0.03,90571.0,90570.0,0.05591704]
[1768080317245,0.05212,90571.0,90570.0,0.05591704]
[1768080317643,0.03,90571.0,90570.0,0.05591704]
[1768080318026,0.03,90571.0,90570.0,0.05560699]
[1768080318230,0.05212,90571.0,90570.0,0.05560699]
[1768080318571,0.05212,90571.0,90570.0,0.05556209]
[1768080319110,0.03,90571.0,90570.0,0.05556209]
[1768080319327,0.05212,90571.0,90570.0,0.05556209]
[1768080323053,0.05212,90571.0,90570.0,0.05525202]
[1768080329667,0.05212,90571.0,90570.0,0.05494195]
[1768080330598,0.05212,90571.0,90570.0,0.00758113]
[1768080332181,0.05212,90571.0,90570.0,0.00753623]
[1768080341764,0.05212,90571.0,90570.0,0.00722624]
[1768080343074,0.05212,90571.0,90570.0,0.00691627]
[1768080343318,0.05212,90571.0,90570.0,0.00660631]
[1768080345455,0.05212,90571.0,90570.0,0.00192176]
[1768080345663,0.05212,90571.0,90568.0,0.04837037]
[1768080351231,0.05212,90571.0,90568.0,0.05837037]
[1768080352648,0.05212,90571.0,90568.0,0.05828056]
[1768080356066,0.05212,90571.0,90568.0,0.05797053]
[1768080359625,0.05212,90571.0,90568.0,0.05766054]
[1768080360867,0.05212,90571.0,90568.0,0.05054101]
[1768080361098,0.05212,90571.0,90568.0,0.04959094]
[1768080377630,0.05212,90571.0,90568.0,0.01]
[1768080380784,0.05212,90571.0,90568.0,0.00255558]
[1768080394145,0.05212,90571.0,90566.0,0.01104167]
[1768080394677,0.05212,90571.0,90565.0,0.01104179]
[1768080400087,0.09545921,90571.0,90565.0,0.01104179]
[1768080402004,0.09545921,90571.0,90564.0,0.01104191]
[1768080402818,0.09545921,90571.0,90565.0,0.01104179]
[1768080403166,0.09545921,90571.0,90564.0,0.01104191]
[1768080404541,0.09545921,90571.0,90559.0,0.06625504]
[1768080404721,0.09545921,90571.0,90562.0,0.01104215]
[1768080405079,0.05212,90571.0,90562.0,0.01104215]
[1768080405282,0.05212,90571.0,90563.0,0.05857433]
[1768080405502,0.05212,90571.0,90563.0,0.0475323]
[1768080405805,0.05212,90571.0,90563.0,0.05857433]
[1768080411093,0.05212,90571.0,90563.0,0.05829368]
[1768080412639,0.05212,90571.0,90563.0,0.01104203]
[1768080414905,0.05212,90571.0,90564.0,0.01104191]
[1768080418154,0.05212,90571.0,90565.0,0.04812991]
[1768080420577,0.05212,90571.0,90565.0,0.048085]
[1768080425824,0.05212,90571.0,90565.0,0.05912679]
[1768080426852,0.05212,90571.0,90565.0,0.048085]
[1768080427052,0.05212,90571.0,90565.0,0.04799518]
[1768080429693,0.05212,90571.0,90565.0,0.05903697]
[1768080430638,0.05212,90571.0,90565.0,0.04799518]
[1768080431633,0.05212,90571.0,90565.0,0.05903697]
[1768080432153,0.05212,90571.0,90565.0,0.04799518]
[1768080432633,0.05212,90571.0,90565.0,0.05903697]
[1768080433164,0.05212,90571.0,90565.0,0.04799518]
[1768080437796,0.05212,90571.0,90565.0,0.05903697]
[1768080439845,0.05212,90571.0,90565.0,0.04799518]
[1768080440029,0.05200958,90571.0,90565.0,0.05903697]
[1768080440840,0.05200958,90571.0,90566.0,0.01104167]
[1768080441602,0.05200958,90571.0,90565.0,0.05903697]
[1768080449366,0.05200958,90571.0,90565.0,0.04799518]
[1768080449736,0.05200958,90571.0,90565.0,0.05903697]
[1768080449932,0.05200958,90571.0,90565.0,0.04799518]
[1768080451265,0.05200958,90571.0,90565.0,0.05903697]
[1768080452132,0.05200958,90571.0,90565.0,0.04799518]
[1768080452535,0.05200958,90571.0,90565.0,0.05903697]
[1768080452906,0.05200958,90571.0,90565.0,0.04799518]
[1768080453460,0.05200958,90571.0,90565.0,0.05903697]
[1768080454341,0.05200958,90571.0,90565.0,0.04799518]
[1768080456745,0.05200958,90571.0,90565.0,0.05903697]
[1768080468385,0.05185449,90571.0,90565.0,0.05903697]
[1768080470543,0.05185449,90571.0,90565.0,0.04799518]
[1768080471231,0.05185449,90571.0,90565.0,0.05903697]
[1768080473143,0.05185449,90571.0,90565.0,0.04799518]
[1768080473350,0.05185449,90571.0,90565.0,0.05903697]
[1768080482919,0.04081306,90571.0,90565.0,0.05903697]
[1768080483286,0.04081306,90571.0,90565.0,0.0589919]
[1768080485337,0.04081306,90571.0,90565.0,0.04795011]
[1768080485542,0.04081306,90571.0,90564.0,0.01104191]
[1768080485747,0.04081306,90571.0,90565.0,0.01104179]
[1768080492282,0.04081306,90571.0,90564.0,0.01104191]
[1768080492499,0.04081306,90571.0,90565.0,0.01104179]
[1768080493094,0.04081306,90571.0,90564.0,0.01104191]
[1768080494580,0.04081306,90571.0,90565.0,0.01104179]
[1768080495394,0.04081306,90571.0,90564.0,0.01104191]
[1768080495731,0.04081306,90571.0,90565.0,0.01104179]
[1768080496333,0.04081306,90571.0,90564.0,0.01104191]
[1768080497668,0.08461272,90571.0,90564.0,0.01104191]
[1768080500182,0.08461272,90571.0,90565.0,0.01104179]
[1768080500363,0.08461272,90571.0,90564.0,0.01104191]
[1768080501036,0.08461272,90571.0,90563.0,0.01104203]
[1768080501629,0.08461272,90571.0,90563.0,0.01099697]
[1768080501757,0.08461272,90571.0,90562.0,0.01104215]
[1768080502207,0.08461272,90571.0,90563.0,0.01104203]
[1768080502624,0.08461272,90571.0,90564.0,0.01104191]
[1768080503141,0.08461272,90571.0,90563.0,0.01104203]
[1768080503340,0.04081306,90571.0,90564.0,0.01104191]
[1768080503953,0.04081306,90571.0,90563.0,0.01104203]
[1768080504161,0.04081306,90571.0,90564.0,0.01104191]
[1768080507278,0.04081306,90571.0,90563.0,0.01104203]
[1768080507717,0.04081306,90571.0,90564.0,0.01104191]
[1768080508130,0.04081306,90571.0,90563.0,0.01104203]
[1768080508350,0.04081306,90571.0,90564.0,0.01099685]
[1768080510370,0.04081306,90571.0,90564.0,0.01104191]
[1768080511499,0.04081306,90571.0,90563.0,0.01104203]
[1768080512519,0.04081306,90571.0,90564.0,0.01104191]
[1768080513679,0.04081306,90571.0,90563.0,0.01104203]
[1768080514682,0.04081306,90571.0,90564.0,0.01104191]
[1768080514885,0.04081306,90571.0,90556.0,0.01104215]
[1768080514886,0.03,90565.0,90556.0,0.01104215]
[1768080515134,0.07379966,90563.0,90550.0,0.01104362]
[1768080515286,0.07379966,90563.0,90551.0,0.0110435]
[1768080515287,0.03,90559.0,90551.0,0.0110435]
[1768080515482,0.03,90559.0,90552.0,0.01104337]
[1768080515692,0.03,90559.0,90553.0,0.01104325]
[1768080515891,0.03,90559.0,90554.0,0.01104313]
[1768080516293,0.02212,90562.0,90554.0,0.01104313]
[1768080516294,0.03,90558.0,90554.0,0.01104313]
[1768080517400,0.03,90561.0,90554.0,0.01104313]
[1768080517980,0.03,90561.0,90555.0,0.01104301]
[1768080519721,0.03,90561.0,90556.0,0.01104289]
[1768080519927,0.03,90561.0,90552.0,0.0662602]
[1768080519928,0.03,90561.0,90552.0,0.01104337]
[1768080520167,0.03,90561.0,90553.0,0.01104325]
[1768080520911,0.03,90561.0,90547.0,0.01104362]
[1768080521111,0.03,90561.0,90549.0,0.01104374]
[1768080522137,0.03,90561.0,90550.0,0.01104362]
[1768080522351,0.03,90561.0,90549.0,0.01104374]
[1768080522563,0.03,90561.0,90550.0,0.01104362]
[1768080522760,0.03,90559.0,90550.0,0.01104362]
[1768080527944,0.03,90559.0,90549.0,0.01104374]
[1768080528152,0.03,90559.0,90550.0,0.01104362]
[1768080528751,0.03,90559.0,90549.0,0.01104374]
[1768080528990,0.03,90559.0,90550.0,0.01104362]
[1768080529827,0.03,90559.0,90551.0,0.04657611]
[1768080536064,0.03,90559.0,90549.0,0.01104374]
[1768080536441,0.03,90560.0,90549.0,0.01104374]
[1768080536645,0.32296603,90560.0,90549.0,0.01104374]
[1768080538328,0.32296603,90560.0,90550.0,0.04727657]
[1768080538537,0.32296603,90560.0,90550.0,0.05832019]
[1768080538759,0.32296603,90560.0,90550.0,0.04727657]
[1768080541693,0.03,90561.0,90550.0,0.04727657]
[1768080541894,0.03,90559.0,90550.0,0.05832019]
[1768080542283,0.03,90559.0,90549.0,0.01104374]
[1768080542852,0.03,90558.0,90549.0,0.01104374]
[1768080543055,0.29296603,90560.0,90558.0,5.626e-05]
[1768080543254,0.04379966,90560.0,90558.0,1.121e-05]
[1768080544203,0.03,90559.0,90558.0,1.121e-05]
[1768080548928,0.03,90560.0,90558.0,1.121e-05]
[1768080549911,0.03,90561.0,90558.0,1.121e-05]
[1768080556731,0.03,90559.0,90558.0,1.121e-05]
[1768080556854,0.07379966,90559.0,90558.0,1.121e-05]
[1768080558357,0.03,90559.0,90558.0,1.121e-05]
[1768080561290,0.03,90560.0,90558.0,1.121e-05]
[1768080562455,0.03,90559.0,90558.0,1.121e-05]
[1768080563822,0.03,90560.0,90558.0,1.121e-05]
[1768080565103,0.03,90559.0,90558.0,1.121e-05]
[1768080566684,0.04104228,90561.0,90558.0,1.121e-05]
[1768080569231,0.03,90561.0,90558.0,1.121e-05]
[1768080570269,0.04104228,90561.0,90558.0,1.121e-05]
[1768080572126,0.03,90561.0,90558.0,1.121e-05]
[1768080572576,0.04104228,90561.0,90558.0,1.121e-05]
[1768080575298,0.03,90561.0,90558.0,1.121e-05]
[1768080592945,0.04104228,90561.0,90558.0,1.121e-05]
[1768080600677,0.03,90559.0,90558.0,1.121e-05]
[1768080601243,0.03,90559.0,90548.0,0.0001517]
[1768080601244,0.03,90555.0,90548.0,0.0001517]
[1768080601471,0.03,90553.0,90549.0,0.04659825]
[1768080601645,0.02212,90554.0,90553.0,0.0566433]
[1768080602840,0.02212,90554.0,90553.0,0.0466433]
[1768080604562,0.02212,90554.0,90553.0,0.04659841]
[1768080604763,0.04104191,90564.0,90554.0,0.00986607]
[1768080605504,0.04104191,90564.0,90553.0,0.04659841]
[1768080605710,0.03,90562.0,90553.0,0.04659841]
[1768080610793,0.03,90562.0,90551.0,0.0110435]
[1768080611641,0.03,90562.0,90552.0,0.01104337]
[1768080612844,0.03,90562.0,90551.0,0.0110435]
[1768080613913,0.03,90562.0,90550.0,0.01104362]
[1768080614444,0.03,90562.0,90548.0,0.01119556]
[1768080614665,0.03,90562.0,90549.0,0.01104374]
[1768080614868,0.03,90560.0,90548.0,0.0001517]
[1768080615068,0.03,90560.0,90549.0,0.01104374]
[1768080615273,0.03,90560.0,90550.0,0.01104362]
[1768080615891,0.03,90559.0,90548.0,0.01119556]
[1768080616097,0.03,90559.0,90550.0,0.01104362]
[1768080616314,0.03,90559.0,90551.0,0.04785337]
[1768080617004,0.03,90562.0,90551.0,0.04785337]
[1768080618772,0.03316203,90563.0,90551.0,0.04785337]
[1768080618773,0.03,90559.0,90551.0,0.04785337]
[1768080620005,0.01104215,90562.0,90551.0,0.04785337]
[1768080620006,0.03,90558.0,90551.0,0.04785337]
[1768080620699,0.01089598,90561.0,90551.0,0.04785337]
[1768080621018,0.03,90560.0,90551.0,0.04785337]
[1768080623161,0.03,90559.0,90551.0,0.04785337]
[1768080624684,0.03,90558.0,90551.0,0.04785337]
[1768080626195,0.03,90557.0,90551.0,0.04785337]
[1768080627339,0.03,90556.0,90551.0,0.04785337]
[1768080627493,0.03,90554.0,90551.0,0.04785337]
[1768080633256,0.02212,90555.0,90551.0,0.04785337]
[1768080634425,0.02212,90555.0,90550.0,0.01104362]
[1768080634559,0.02212,90555.0,90551.0,0.0110435]
[1768080634783,0.02212,90555.0,90552.0,0.01104337]
[1768080634986,0.02212,90555.0,90551.0,0.0110435]
[1768080639571,0.02212,90555.0,90550.0,0.01104362]
[1768080639950,0.02212,90555.0,90551.0,0.0106435]
[1768080640153,0.02212,90555.0,90550.0,0.01104362]
[1768080640361,0.02212,90555.0,90551.0,0.0110435]
[1768080640540,0.02212,90555.0,90551.0,0.01099859]
[1768080643094,0.02212,90555.0,90551.0,0.0110435]
[1768080643594,0.02212,90555.0,90552.0,0.01104337]
[1768080644572,0.02212,90555.0,90553.0,0.04768465]
[1768080649457,0.0166587,90555.0,90553.0,0.04768465]
[1768080653517,0.05212,90554.0,90553.0,0.01104325]
[1768080653690,0.02212,90555.0,90554.0,0.01104313]
[1768080653857,0.02212,90555.0,90554.0,0.0662588]
[1768080654261,0.02212,90555.0,90554.0,0.01104313]
[1768080654463,0.02212,90555.0,90554.0,0.01099823]
[1768080654912,0.02212,90555.0,90554.0,0.0662139]
[1768080655119,0.02212,90555.0,90554.0,0.01099823]
[1768080656463,0.02212,90555.0,90554.0,0.0662139]
[1768080656894,0.02212,90555.0,90554.0,0.01099823]
[1768080657095,0.02212,90555.0,90554.0,0.0662139]
[1768080657295,0.02212,90555.0,90554.0,0.01099823]
[1768080658712,0.02212,90555.0,90552.0,0.01104337]
[1768080659807,0.02212,90555.0,90552.0,0.06626023]
[1768080660375,0.02212,90555.0,90553.0,0.05521628]
[1768080662229,0.02212,90555.0,90554.0,0.05521567]
[1768080662669,0.02212,90555.0,90553.0,0.05521628]
[1768080666125,0.02212,90555.0,90554.0,0.05521567]
[1768080666318,0.02212,90555.0,90554.0,0.04512716]
[1768080666514,0.02212,90555.0,90554.0,0.10034283]
[1768080668291,0.02212,90555.0,90554.0,0.10025301]
[1768080669954,0.02212,90555.0,90554.0,0.05521567]
[1768080670608,0.03,90557.0,90555.0,0.01104301]
[1768080672904,0.03,90557.0,90554.0,0.01104313]
[1768080673104,0.03,90557.0,90553.0,0.01104325]
[1768080673326,0.03,90557.0,90552.0,0.0662598]
[1768080674024,0.03,90557.0,90554.0,0.01104313]
[1768080677530,0.03,90557.0,90554.0,0.04512716]
[1768080678090,0.03,90557.0,90554.0,0.05617029]
[1768080679560,0.03,90557.0,90554.0,0.04512716]
[1768080680398,0.03,90557.0,90554.0,0.04503734]
[1768080681469,0.03,90557.0,90554.0,0.05608047]
[1768080682258,0.03,90557.0,90554.0,0.01104313]